bitfinex/quotes_BTCUSD_20240715
["timestamp","ask_amount","ask_price","bid_price","bid_amount"]
[1721077082264,0.00059853,63874.0,63873.0,1.36388838]
[1721077082847,0.02072555,63874.0,63873.0,1.36388838]
[1721077083697,0.02072555,63874.0,63873.0,1.24388838]
[1721077083899,0.02072555,63874.0,63873.0,1.36388838]
[1721077085838,0.02095365,63874.0,63873.0,1.36388838]
[1721077086283,0.02095301,63874.0,63873.0,1.36388838]
[1721077086817,0.02095301,63874.0,63873.0,1.24388838]
[1721077087021,0.02095301,63874.0,63873.0,1.24411983]
[1721077087225,0.02095301,63874.0,63873.0,0.969715]
[1721077087226,0.15995301,63874.0,63873.0,0.969715]
[1721077087425,0.15995301,63874.0,63873.0,0.849715]
[1721077088529,0.1844493,63874.0,63873.0,0.849715]
[1721077089200,0.16023637,63874.0,63873.0,0.849715]
[1721077089356,0.23166535,63874.0,63873.0,0.066913]
[1721077089572,0.31195082,63874.0,63873.0,0.066913]
[1721077089781,0.2415522,63874.0,63873.0,0.066913]
[1721077090968,0.35888324,63874.0,63873.0,0.066913]
[1721077091164,0.2415522,63874.0,63873.0,0.066913]
[1721077091592,0.2415522,63874.0,63873.0,0.028913]
[1721077091798,0.2415522,63874.0,63873.0,0.066913]
[1721077092124,0.2415522,63874.0,63873.0,0.052913]
[1721077092569,0.2415522,63874.0,63873.0,0.060913]
[1721077093681,0.2415522,63874.0,63873.0,0.052913]
[1721077094084,0.35893092,63874.0,63873.0,0.063913]
[1721077094443,0.3354505,63874.0,63873.0,0.220473]
[1721077094650,0.33545076,63874.0,63873.0,0.220473]
[1721077094878,0.2415522,63874.0,63873.0,0.063913]
[1721077095083,0.35893092,63874.0,63873.0,0.03914445]
[1721077095279,0.1640951,63874.0,63873.0,0.05114445]
[1721077095455,0.241903,63874.0,63873.0,0.218473]
[1721077095661,0.24189885,63874.0,63873.0,0.519594]
[1721077095860,0.25533335,63874.0,63873.0,0.519594]
[1721077096066,0.25533335,63874.0,63873.0,0.533594]
[1721077096271,0.25533335,63874.0,63873.0,0.519594]
[1721077096782,0.25533335,63874.0,63873.0,0.508594]
[1721077097195,0.25533335,63874.0,63873.0,0.522594]
[1721077097572,0.25533335,63874.0,63873.0,0.519594]
[1721077097773,0.33543361,63874.0,63873.0,0.508594]
[1721077098348,0.24153598,63874.0,63873.0,0.522594]
[1721077098563,0.1640951,63874.0,63873.0,0.522594]
[1721077098779,0.33485392,63874.0,63873.0,0.522594]
[1721077098888,0.24094782,63874.0,63873.0,0.223473]
[1721077099093,0.33485392,63874.0,63873.0,0.223473]
[1721077100888,0.33485744,63874.0,63873.0,0.536594]
[1721077101509,0.18442747,63874.0,63873.0,0.536594]
[1721077101715,0.04542747,63874.0,63873.0,0.969715]
[1721077101943,0.09223374,63874.0,63873.0,0.969715]
[1721077102092,0.04528077,63874.0,63873.0,0.969715]
[1721077102298,0.0207842,63874.0,63873.0,0.969715]
[1721077102508,0.0207842,63874.0,63873.0,0.955715]
[1721077102716,0.00059853,63874.0,63873.0,0.955715]
[1721077102916,0.00059853,63874.0,63873.0,0.849715]
[1721077103097,0.04590597,63874.0,63873.0,0.849715]
[1721077103302,0.09285894,63874.0,63873.0,0.849715]
[1721077103521,0.09285894,63874.0,63873.0,0.835715]
[1721077103722,0.09285903,63874.0,63873.0,0.835715]
[1721077103983,0.09285903,63874.0,63873.0,0.849715]
[1721077104177,0.09285914,63874.0,63873.0,0.835715]
[1721077104787,0.09285914,63874.0,63873.0,0.849715]
[1721077104985,0.04590597,63874.0,63873.0,0.849715]
[1721077105187,0.02509487,63874.0,63873.0,0.849715]
[1721077105453,0.09228487,63874.0,63873.0,0.835715]
[1721077105655,0.09228635,63874.0,63873.0,0.849715]
[1721077106103,0.04533215,63874.0,63873.0,0.849715]
[1721077106316,0.09228635,63874.0,63873.0,0.835715]
[1721077106489,0.09228635,63874.0,63873.0,0.821715]
[1721077107553,0.02083581,63874.0,63873.0,0.835715]
[1721077108101,0.04533223,63874.0,63873.0,0.849715]
[1721077108408,0.04482677,63874.0,63873.0,0.849715]
[1721077108604,0.02033035,63874.0,63873.0,0.835715]
[1721077108963,0.02033035,63874.0,63873.0,0.849715]
[1721077109286,0.0917817,63874.0,63873.0,0.849715]
[1721077109489,0.04482652,63874.0,63873.0,0.835715]
[1721077109661,0.0917817,63874.0,63873.0,0.849715]
[1721077110076,0.04482652,63874.0,63873.0,0.835715]
[1721077110282,0.09178223,63874.0,63873.0,0.835715]
[1721077110483,0.09178223,63874.0,63873.0,0.849715]
[1721077110484,0.04482652,63874.0,63873.0,0.849715]
[1721077110891,0.02033035,63874.0,63873.0,0.849715]
[1721077111097,0.09178282,63874.0,63873.0,0.550594]
[1721077111292,0.11525934,63874.0,63873.0,0.550594]
[1721077111523,0.02509474,63874.0,63873.0,0.550594]
[1721077111721,0.04496692,63874.0,63873.0,0.550594]
[1721077111919,0.09192381,63874.0,63873.0,0.550594]
[1721077112471,0.04496692,63874.0,63873.0,0.550594]
[1721077112791,0.09192371,63874.0,63873.0,0.550594]
[1721077112995,0.04496692,63874.0,63873.0,0.863715]
[1721077113319,0.02047071,63874.0,63873.0,0.863715]
[1721077113859,0.02047071,63874.0,63873.0,1.359936]
[1721077114165,0.02047071,63874.0,63873.0,1.673057]
[1721077114523,0.00059853,63874.0,63873.0,1.673057]
[1721077115141,0.00059853,63874.0,63873.0,1.659057]
[1721077115346,0.00059853,63874.0,63873.0,1.631057]
[1721077115549,0.00059853,63874.0,63873.0,1.645057]
[1721077115874,0.00059853,63874.0,63873.0,1.659057]
[1721077117175,0.00059853,63874.0,63873.0,1.709057]
[1721077117385,0.00059853,63874.0,63873.0,3.55201691]
[1721077117575,0.00059853,63874.0,63873.0,3.59824261]
[1721077117910,0.00059853,63874.0,63873.0,4.12153413]
[1721077118125,0.00059853,63874.0,63873.0,3.85838708]
[1721077118606,0.00059853,63874.0,63873.0,3.28891691]
[1721077119065,0.00059853,63874.0,63873.0,3.3351018]
[1721077119270,0.00059853,63874.0,63873.0,3.30291691]
[1721077119972,0.00059853,63874.0,63873.0,3.28891691]
[1721077120397,0.00059853,63874.0,63873.0,3.30291691]
[1721077120959,0.00059853,63874.0,63873.0,3.28891691]
[1721077121323,0.00059853,63874.0,63873.0,3.30291691]
[1721077121747,0.00059853,63874.0,63873.0,3.28891691]
[1721077122127,0.00059853,63874.0,63873.0,3.30291691]
[1721077123224,0.00059853,63874.0,63873.0,2.304678]
[1721077123634,0.00059853,63874.0,63873.0,2.290678]
[1721077123967,0.00059853,63874.0,63873.0,2.304678]
[1721077124163,0.00059853,63874.0,63873.0,2.276678]
[1721077124588,0.00059853,63874.0,63873.0,2.304678]
[1721077125194,0.00059853,63874.0,63873.0,2.290678]
[1721077125553,0.00059853,63874.0,63873.0,2.304678]
[1721077126158,0.00059853,63874.0,63873.0,2.290678]
[1721077126573,0.00059853,63874.0,63873.0,2.276678]
[1721077126905,0.00059853,63874.0,63873.0,2.290678]
[1721077127244,0.00059853,63874.0,63873.0,2.276678]
[1721077127515,0.00059853,63874.0,63873.0,2.304678]
[1721077128005,0.00059853,63874.0,63873.0,2.78891691]
[1721077128206,0.00059853,63874.0,63873.0,2.80291691]
[1721077128670,0.00059853,63874.0,63873.0,2.78891691]
[1721077128888,0.198572,63880.0,63876.0,0.17]
[1721077129087,13.62618084,63888.0,63887.0,0.464526]
[1721077129284,12.24678084,63888.0,63887.0,1.57890029]
[1721077129524,12.24678084,63888.0,63887.0,2.79015629]
[1721077129950,12.24678084,63888.0,63887.0,3.10320829]
[1721077130496,12.24678084,63888.0,63887.0,2.37893838]
[1721077130702,12.24678084,63888.0,63887.0,2.51805629]
[1721077130901,12.24678084,63888.0,63887.0,2.247886]
[1721077131102,12.24678084,63888.0,63887.0,2.224886]
[1721077131534,12.24678084,63888.0,63887.0,2.238886]
[1721077131695,12.24678084,63888.0,63887.0,2.252886]
[1721077131892,12.24678084,63888.0,63887.0,2.202886]
[1721077132092,12.24678084,63888.0,63887.0,2.224886]
[1721077132565,12.24678084,63888.0,63887.0,2.188886]
[1721077132761,12.24678084,63888.0,63887.0,2.238886]
[1721077133135,12.24678084,63888.0,63887.0,2.118886]
[1721077133710,12.24678084,63888.0,63887.0,2.302886]
[1721077133896,12.24678084,63888.0,63887.0,2.48800391]
[1721077134098,12.24678084,63888.0,63887.0,2.50200391]
[1721077134296,12.24678084,63888.0,63887.0,2.48800391]
[1721077134791,12.24678084,63888.0,63887.0,2.47400391]
[1721077135101,12.24678084,63888.0,63887.0,2.48800391]
[1721077135637,12.24678084,63888.0,63887.0,2.325886]
[1721077135839,12.24678084,63888.0,63887.0,2.302886]
[1721077136268,12.24678084,63888.0,63887.0,2.171486]
[1721077136719,12.24678084,63888.0,63887.0,2.121486]
[1721077137030,12.24678084,63888.0,63887.0,2.057786]
[1721077137384,12.24678084,63888.0,63887.0,1.744734]
[1721077137797,12.24678084,63888.0,63887.0,1.808734]
[1721077138368,12.24678084,63888.0,63887.0,1.758734]
[1721077138745,12.24678084,63888.0,63887.0,1.808734]
[1721077139507,12.24678084,63888.0,63887.0,1.758734]
[1721077141423,12.24678084,63888.0,63887.0,1.821454]
[1721077144071,12.24678084,63888.0,63887.0,1.871454]
[1721077145108,12.24678084,63888.0,63887.0,2.234506]
[1721077145887,12.24678084,63888.0,63887.0,1.921454]
[1721077146237,12.24678084,63888.0,63887.0,2.234506]
[1721077147021,12.24678084,63888.0,63887.0,2.257506]
[1721077148177,12.24678084,63888.0,63887.0,2.406706]
[1721077148561,12.24678084,63888.0,63887.0,2.56882391]
[1721077149189,12.24639684,63888.0,63887.0,2.56882391]
[1721077149397,12.24639684,63888.0,63887.0,2.88187591]
[1721077149798,12.2196578,63888.0,63887.0,2.88187591]
[1721077150632,12.2196578,63888.0,63887.0,2.86787591]
[1721077150943,12.2196578,63888.0,63887.0,2.54082391]
[1721077151484,12.2196578,63888.0,63887.0,2.85387591]
[1721077152612,12.2196578,63888.0,63887.0,2.55482391]
[1721077152859,12.2196578,63888.0,63887.0,2.55472391]
[1721077154253,12.2196578,63888.0,63887.0,2.369606]
[1721077155066,12.2196578,63888.0,63887.0,2.286606]
[1721077155300,12.2196578,63888.0,63887.0,2.272606]
[1721077155498,12.2196578,63888.0,63887.0,2.258606]
[1721077155702,12.2196578,63888.0,63887.0,2.206406]
[1721077155916,12.2196578,63888.0,63887.0,2.220406]
[1721077156352,12.2196578,63888.0,63887.0,2.243406]
[1721077160269,12.2196578,63888.0,63887.0,2.40552391]
[1721077160828,12.2196578,63888.0,63887.0,2.39152391]
[1721077160950,12.2196578,63888.0,63887.0,2.229406]
[1721077161150,12.2196578,63888.0,63887.0,2.243406]
[1721077161837,12.2196578,63888.0,63887.0,2.229406]
[1721077162193,12.2196578,63888.0,63887.0,2.243406]
[1721077163213,12.2196578,63888.0,63887.0,2.229406]
[1721077163822,12.2196578,63888.0,63887.0,2.243406]
[1721077164706,12.2196578,63888.0,63887.0,1.857354]
[1721077166027,12.2196578,63888.0,63887.0,1.757354]
[1721077166431,12.2196578,63888.0,63887.0,1.224302]
[1721077166682,12.2196578,63888.0,63887.0,0.91125]
[1721077166683,12.3831647,63888.0,63887.0,0.91125]
[1721077166862,12.3831647,63888.0,63887.0,0.84853]
[1721077167703,12.3831647,63888.0,63887.0,0.83453]
[1721077167920,12.3831647,63888.0,63887.0,0.84853]
[1721077168438,12.3831647,63888.0,63887.0,0.83453]
[1721077168828,12.3831647,63888.0,63887.0,0.84853]
[1721077168988,12.3831647,63888.0,63887.0,0.83453]
[1721077169191,12.38319394,63888.0,63887.0,0.84853]
[1721077169389,12.38319394,63888.0,63887.0,0.83453]
[1721077169793,12.38319394,63888.0,63887.0,0.84853]
[1721077170159,12.38319394,63888.0,63887.0,0.835443]
[1721077170601,12.38319394,63888.0,63887.0,0.849443]
[1721077170804,12.38319394,63888.0,63887.0,0.863443]
[1721077171406,12.38319394,63888.0,63887.0,0.849443]
[1721077171607,12.38319394,63888.0,63887.0,0.863443]
[1721077172020,12.38319394,63888.0,63887.0,0.835443]
[1721077172229,12.38319394,63888.0,63887.0,0.849443]
[1721077172431,12.3616578,63888.0,63887.0,0.849443]
[1721077172631,12.3616578,63888.0,63887.0,0.835443]
[1721077172632,12.38446177,63888.0,63887.0,0.835443]
[1721077172805,12.38446177,63888.0,63887.0,1.148495]
[1721077173007,12.38417749,63888.0,63887.0,1.148495]
[1721077173151,12.38417749,63888.0,63887.0,1.134495]
[1721077173347,12.38417749,63888.0,63887.0,0.835443]
[1721077174333,12.38417749,63888.0,63887.0,1.162495]
[1721077174671,12.38417749,63888.0,63887.0,1.148495]
[1721077174867,12.38417749,63888.0,63887.0,1.162495]
[1721077175270,12.38475763,63888.0,63887.0,1.162495]
[1721077175837,12.38510129,63888.0,63887.0,1.162495]
[1721077176068,12.3616578,63888.0,63887.0,1.162495]
[1721077176423,12.38510014,63888.0,63887.0,1.162495]
[1721077178751,12.38510014,63888.0,63887.0,0.849443]
[1721077178957,12.38472947,63888.0,63887.0,0.223339]
[1721077179176,12.38472947,63888.0,63887.0,0.066813]
[1721077179177,12.50472947,63888.0,63887.0,0.066813]
[1721077179333,12.575043,63888.0,63887.0,0.066813]
[1721077179536,12.59953717,63888.0,63887.0,0.066813]
[1721077179759,12.59953153,63888.0,63887.0,0.066813]
[1721077180306,12.59953165,63888.0,63887.0,0.028913]
[1721077180461,12.52922364,63888.0,63887.0,0.028913]
[1721077180881,12.58758074,63888.0,63887.0,0.028913]
[1721077181220,12.58758074,63888.0,63887.0,0.000913]
[1721077181424,12.6578495,63888.0,63887.0,0.000913]
[1721077181557,12.6578495,63888.0,63887.0,0.052813]
[1721077181997,12.6578495,63888.0,63887.0,0.014913]
[1721077182199,0.2586,63882.0,63881.0,0.0379]
[1721077182411,0.35212033,63882.0,63881.0,0.0379]
[1721077182674,0.30527228,63882.0,63881.0,0.0379]
[1721077182883,0.30527228,63882.0,63875.0,0.156555]
[1721077182884,0.12,63880.0,63879.0,0.0379]
[1721077183100,0.30602052,63880.0,63879.0,0.0379]
[1721077183276,0.28152635,63880.0,63879.0,0.0379]
[1721077183890,0.12,63877.0,63876.0,0.0379]
[1721077184100,0.16332635,63877.0,63876.0,0.0379]
[1721077184294,0.16332635,63877.0,63873.0,0.000913]
[1721077184295,0.1404,63875.0,63874.0,0.0379]
[1721077184532,0.28332635,63875.0,63874.0,0.0379]
[1721077185116,0.1404,63875.0,63874.0,0.0379]
[1721077185298,0.28299113,63875.0,63874.0,0.0379]
[1721077185494,0.2829929,63875.0,63874.0,0.0379]
[1721077185690,0.2829929,63875.0,63874.0,0.0499]
[1721077185892,0.2839929,63875.0,63874.0,0.0499]
[1721077186165,0.1639929,63875.0,63874.0,0.206458]
[1721077186375,0.1639929,63875.0,63874.0,0.83269]
[1721077186548,0.1639929,63875.0,63874.0,0.0639]
[1721077188464,0.4130929,63875.0,63874.0,0.0639]
[1721077188666,0.41302967,63875.0,63874.0,0.0639]
[1721077189247,0.53302967,63875.0,63874.0,0.026]
[1721077190232,0.53302967,63875.0,63874.0,0.012]
[1721077190426,0.53302967,63875.0,63874.0,0.025]
[1721077191052,0.53302967,63875.0,63874.0,0.013]
[1721077191053,0.53202967,63875.0,63874.0,0.013]
[1721077191461,0.53302967,63875.0,63874.0,0.02]
[1721077191671,0.53302967,63875.0,63874.0,0.013]
[1721077191873,0.5105,63875.0,63874.0,0.013]
[1721077192095,0.53273187,63875.0,63874.0,0.013]
[1721077192357,0.53273187,63875.0,63873.0,0.038813]
[1721077192358,0.3701,63875.0,63873.0,0.038813]
[1721077192638,0.28003187,63874.0,63873.0,0.038813]
[1721077192934,0.16003187,63874.0,63873.0,0.038813]
[1721077193645,0.16003187,63874.0,63873.0,0.045813]
[1721077194054,0.16003187,63874.0,63873.0,0.038813]
[1721077194256,0.16103187,63874.0,63873.0,0.047813]
[1721077194463,0.16103187,63874.0,63873.0,0.054813]
[1721077194833,0.16052147,63874.0,63873.0,0.047813]
[1721077194994,0.16152147,63874.0,63873.0,0.055813]
[1721077195418,0.16152147,63874.0,63873.0,0.212373]
[1721077196224,0.16152147,63874.0,63873.0,0.055813]
[1721077196483,0.16052147,63874.0,63873.0,0.046813]
[1721077196691,0.16152147,63874.0,63873.0,0.056813]
[1721077197318,0.15952147,63874.0,63873.0,0.038813]
[1721077197560,0.16052147,63874.0,63873.0,0.048813]
[1721077197761,0.16052147,63874.0,63873.0,0.057813]
[1721077197762,0.16152147,63874.0,63873.0,0.057813]
[1721077198294,0.16205235,63874.0,63873.0,0.057813]
[1721077198495,0.28205235,63874.0,63873.0,0.057813]
[1721077198690,0.16205235,63874.0,63873.0,0.057813]
[1721077198920,0.28205235,63874.0,63873.0,0.057813]
[1721077199091,0.16105235,63874.0,63873.0,0.047813]
[1721077199428,0.16105235,63874.0,63873.0,0.055813]
[1721077199779,0.16105235,63874.0,63873.0,0.047813]
[1721077200280,0.16105235,63874.0,63873.0,0.056813]
[1721077200589,0.28105235,63874.0,63873.0,0.056813]
[1721077201008,0.28053334,63874.0,63873.0,0.056813]
[1721077202868,0.28042724,63874.0,63873.0,0.056813]
[1721077204139,0.28060603,63874.0,63873.0,0.056813]
[1721077204372,0.30510724,63874.0,63873.0,0.056813]
[1721077206474,0.16730724,63874.0,63873.0,0.056813]
[1721077206675,0.121,63874.0,63873.0,0.202013]
[1721077206889,0.121,63874.0,63873.0,0.193013]
[1721077207090,0.121,63874.0,63873.0,0.184013]
[1721077207091,0.12,63874.0,63873.0,0.184013]
[1721077207234,0.12,63874.0,63873.0,0.325013]
[1721077207235,0.121,63874.0,63873.0,0.325013]
[1721077207442,0.00083,63887.0,63875.0,0.00306353]
[1721077207645,0.00083,63887.0,63886.0,0.14585238]
[1721077208671,0.00183,63887.0,63886.0,0.0648]
[1721077209891,0.00083,63887.0,63886.0,0.0648]
[1721077210098,0.00083,63887.0,63886.0,0.0788]
[1721077210306,0.00083,63887.0,63886.0,0.0928]
[1721077210510,0.00083,63887.0,63886.0,0.0788]
[1721077210707,0.00083,63887.0,63886.0,0.0928]
[1721077210916,0.00083,63887.0,63886.0,0.0648]
[1721077211120,0.00083,63887.0,63886.0,0.0788]
[1721077211268,0.00083,63887.0,63886.0,0.0928]
[1721077211834,0.00083,63887.0,63886.0,0.1068]
[1721077212497,0.00083,63887.0,63886.0,0.0928]
[1721077212700,0.00083,63887.0,63886.0,0.1068]
[1721077212904,0.00083,63887.0,63886.0,0.042]
[1721077213107,0.00083,63887.0,63881.0,0.0613]
[1721077213330,0.00083,63887.0,63886.0,0.014]
[1721077213536,0.00083,63887.0,63886.0,0.028]
[1721077213720,12.1204878,63888.0,63887.0,0.00306353]
[1721077214148,12.1204878,63888.0,63886.0,0.014]
[1721077214276,12.1204878,63888.0,63882.0,0.00306353]
[1721077214660,12.1204878,63888.0,63886.0,0.014]
[1721077215515,12.1204878,63888.0,63881.0,0.0613]
[1721077215725,12.1204878,63888.0,63882.0,0.00306353]
[1721077215941,12.1204878,63888.0,63887.0,0.014]
[1721077216369,12.1204878,63888.0,63882.0,0.00306353]
[1721077216721,12.1204878,63888.0,63887.0,0.014]
[1721077216925,12.1204878,63888.0,63887.0,0.2719]
[1721077217172,12.1204878,63888.0,63887.0,0.2579]
[1721077217363,12.1204878,63888.0,63887.0,0.1659]
[1721077217927,12.1204878,63888.0,63887.0,0.1159]
[1721077218340,12.1810878,63888.0,63887.0,0.0659]
[1721077218947,12.1810878,63888.0,63887.0,0.0519]
[1721077219172,12.1810878,63888.0,63887.0,0.014]
[1721077219173,12.20445713,63888.0,63887.0,0.014]
[1721077219522,12.20445713,63888.0,63887.0,0.028]
[1721077219523,12.30445713,63888.0,63887.0,0.028]
[1721077219745,12.30445713,63888.0,63887.0,0.014]
[1721077219953,12.30445713,63888.0,63880.0,0.0379]
[1721077219954,12.2810878,63888.0,63880.0,0.0379]
[1721077220142,12.2810878,63888.0,63887.0,0.028]
[1721077220355,12.2810878,63888.0,63887.0,0.014]
[1721077220356,12.30540516,63888.0,63887.0,0.014]
[1721077220560,12.30540516,63888.0,63880.0,0.0879]
[1721077220698,0.12431736,63887.0,63881.0,0.05]
[1721077220880,0.2491,63883.0,63879.0,0.0379]
[1721077221087,0.2491,63883.0,63877.0,0.05]
[1721077221088,0.02431736,63882.0,63877.0,0.0879]
[1721077221860,0.02431736,63882.0,63877.0,0.0379]
[1721077221861,0.0666,63881.0,63877.0,0.0379]
[1721077222024,0.02431736,63880.0,63874.0,0.0379]
[1721077222286,0.10101736,63879.0,63874.0,0.0379]
[1721077222401,0.02431736,63878.0,63874.0,0.0379]
[1721077222607,0.27341736,63877.0,63873.0,0.038813]
[1721077222906,0.02431736,63876.0,63873.0,0.038813]
[1721077223106,0.1433,63875.0,63873.0,0.038813]
[1721077223214,0.16723975,63875.0,63873.0,0.038813]
[1721077223420,0.02393975,63874.0,63873.0,0.038813]
[1721077224200,0.02393975,63874.0,63873.0,0.052813]
[1721077224334,0.02393975,63874.0,63873.0,0.038813]
[1721077224537,0.27123975,63874.0,63873.0,0.010913]
[1721077224747,0.27123975,63874.0,63860.0,0.038813]
[1721077224748,0.1473,63871.0,63860.0,0.038813]
[1721077224947,0.17144332,63874.0,63860.0,0.038813]
[1721077224948,0.2491,63868.0,63860.0,0.038813]
[1721077225213,0.2491,63868.0,63862.0,0.05]
[1721077225214,0.12393975,63867.0,63862.0,0.05]
[1721077225349,0.12393975,63867.0,63865.0,0.05]
[1721077225350,0.02393975,63866.0,63865.0,0.05]
[1721077225969,0.02393975,63866.0,63865.0,0.22]
[1721077226263,0.0822,63869.0,63862.0,0.0379]
[1721077226264,0.0822,63869.0,63868.0,0.05]
[1721077226472,0.20714191,63869.0,63868.0,0.05]
[1721077226812,0.20714191,63869.0,63866.0,0.049]
[1721077226813,0.20714063,63869.0,63866.0,0.049]
[1721077227012,0.02494063,63868.0,63866.0,0.049]
[1721077227478,0.02494063,63868.0,63865.0,0.054]
[1721077227651,0.02494063,63868.0,63866.0,0.049]
[1721077227852,0.02494063,63868.0,63867.0,0.049]
[1721077228238,0.02494063,63868.0,63866.0,0.053]
[1721077229011,0.02494063,63868.0,63866.0,0.004]
[1721077229420,0.02474259,63867.0,63866.0,0.011]
[1721077229799,0.02474259,63867.0,63866.0,0.007]
[1721077230768,0.02574259,63867.0,63866.0,0.014]
[1721077230899,0.12574259,63867.0,63866.0,0.014]
[1721077231327,0.12574259,63867.0,63866.0,0.007]
[1721077231537,0.12474259,63867.0,63866.0,0.009]
[1721077231853,0.12574259,63867.0,63866.0,0.016]
[1721077232217,0.12574259,63867.0,63866.0,0.007]
[1721077232385,0.12574259,63867.0,63866.0,0.016]
[1721077232609,0.101,63867.0,63866.0,0.016]
[1721077232890,0.12547698,63867.0,63866.0,0.016]
[1721077234670,0.12547698,63867.0,63866.0,0.016913]
[1721077235516,0.26567698,63867.0,63866.0,0.016913]
[1721077236036,0.26480195,63867.0,63866.0,0.016913]
[1721077236275,0.2412,63867.0,63866.0,0.016913]
[1721077236448,0.26480065,63867.0,63866.0,0.016913]
[1721077238980,0.2412,63867.0,63866.0,0.016913]
[1721077239175,0.26509789,63867.0,63866.0,0.016913]
[1721077241028,0.28809789,63867.0,63866.0,0.016913]
[1721077241441,0.34798062,63867.0,63866.0,0.016913]
[1721077242102,0.2642,63867.0,63866.0,0.016913]
[1721077242339,0.34857604,63867.0,63866.0,0.016913]
[1721077242755,0.3730839,63867.0,63866.0,0.016913]
[1721077242957,0.3851839,63867.0,63866.0,0.016913]
[1721077243138,0.1442,63864.0,63860.0,0.000913]
[1721077243306,0.3933,63861.0,63860.0,0.000913]
[1721077243549,0.53996649,63861.0,63860.0,0.000913]
[1721077244749,0.59928003,63861.0,63860.0,0.000913]
[1721077244961,0.60128003,63861.0,63860.0,0.000913]
[1721077245330,0.60486174,63861.0,63860.0,0.000913]
[1721077246187,0.60481262,63861.0,63860.0,0.000913]
[1721077246576,0.60553526,63861.0,63860.0,0.000913]
[1721077246776,0.54554853,63861.0,63860.0,0.000913]
[1721077246981,0.60553562,63861.0,63860.0,0.000913]
[1721077247178,0.60153562,63861.0,63860.0,0.000913]
[1721077247341,0.60553562,63861.0,63860.0,0.000913]
[1721077247766,0.6280447,63861.0,63860.0,0.000913]
[1721077247940,0.6340447,63861.0,63860.0,0.000913]
[1721077248383,0.69865917,63861.0,63860.0,0.000913]
[1721077248590,0.54880908,63861.0,63860.0,0.000913]
[1721077248798,0.63122321,63861.0,63860.0,0.000913]
[1721077249038,0.54880908,63861.0,63860.0,0.000913]
[1721077249337,0.63122346,63861.0,63860.0,0.000913]
[1721077250055,0.63322346,63861.0,63860.0,0.000913]
[1721077250282,0.63422346,63861.0,63860.0,0.000913]
[1721077250428,0.65539497,63861.0,63860.0,0.000913]
[1721077250794,0.64939497,63861.0,63860.0,0.000913]
[1721077251271,0.65439497,63861.0,63860.0,0.000913]
[1721077251432,0.63122346,63861.0,63860.0,0.000913]
[1721077251813,0.63134446,63861.0,63860.0,0.000913]
[1721077253617,0.63034446,63861.0,63860.0,0.000913]
[1721077253826,0.63134446,63861.0,63860.0,0.000913]
[1721077254029,0.63034446,63861.0,63860.0,0.000913]
[1721077254933,0.38124446,63861.0,63860.0,0.000913]
[1721077255143,0.63057586,63861.0,63860.0,0.000913]
[1721077255537,0.62557586,63861.0,63860.0,0.000913]
[1721077256143,0.63057586,63861.0,63860.0,0.000913]
[1721077256465,0.62857586,63861.0,63860.0,0.000913]
[1721077256925,0.63057586,63861.0,63860.0,0.000913]
[1721077257544,0.48437586,63861.0,63860.0,0.000913]
[1721077257708,0.45637586,63861.0,63860.0,0.000913]
[1721077257918,0.45737586,63861.0,63860.0,0.000913]
[1721077258118,0.46037586,63861.0,63860.0,0.000913]
[1721077258284,0.45846575,63861.0,63860.0,0.000913]
[1721077258947,0.45546575,63861.0,63860.0,0.000913]
[1721077259945,0.54436575,63861.0,63860.0,0.000913]
[1721077260106,0.54736575,63861.0,63860.0,0.000913]
[1721077260475,0.54336575,63861.0,63860.0,0.000913]
[1721077260848,0.46250908,63861.0,63860.0,0.002913]
[1721077261049,0.5428384,63861.0,63860.0,0.002913]
[1721077261228,0.5428384,63861.0,63860.0,0.000913]
[1721077261462,0.54283509,63861.0,63860.0,0.000913]
[1721077261667,0.45393509,63861.0,63860.0,0.000913]
[1721077262238,0.39771234,63861.0,63860.0,0.000913]
[1721077263065,0.39711884,63861.0,63860.0,0.000913]
[1721077263278,0.39511884,63861.0,63860.0,0.000913]
[1721077263430,0.45277863,63861.0,63860.0,0.000913]
[1721077263798,0.38060908,63861.0,63860.0,0.000913]
[1721077264000,0.3975787,63861.0,63860.0,0.000913]
[1721077264202,0.37360908,63861.0,63860.0,0.000913]
[1721077264331,0.39557823,63861.0,63860.0,0.007913]
[1721077265700,0.45361479,63861.0,63860.0,0.007913]
[1721077266111,0.39557823,63861.0,63860.0,0.007913]
[1721077266246,0.45369654,63861.0,63860.0,0.007913]
[1721077267035,0.37360908,63861.0,63860.0,0.007913]
[1721077267241,0.45374448,63861.0,63860.0,0.007913]
[1721077267896,0.45374448,63861.0,63860.0,0.057913]
[1721077267897,0.39561683,63861.0,63860.0,0.057913]
[1721077268251,0.39561683,63861.0,63860.0,0.007913]
[1721077268455,0.39561683,63861.0,63860.0,0.057913]
[1721077268916,0.29561683,63861.0,63860.0,0.309813]
[1721077269123,0.29561683,63861.0,63860.0,0.410813]
[1721077269124,0.04651683,63861.0,63860.0,0.410813]
[1721077269686,0.02200775,63861.0,63860.0,0.372913]
[1721077269914,0.02431677,63867.0,63865.0,0.049]
[1721077270087,0.02431842,63867.0,63866.0,0.05]
[1721077270292,0.2491,63868.0,63867.0,0.17]
[1721077270550,0.2491,63874.0,63870.0,0.099]
[1721077270667,0.2491,63874.0,63870.0,0.049]
[1721077270668,0.10912485,63873.0,63870.0,0.049]
[1721077270877,0.2491,63874.0,63866.0,0.0869]
[1721077270878,0.0488116,63872.0,63866.0,0.0869]
[1721077271085,0.0488116,63871.0,63867.0,0.0869]
[1721077271471,0.0488116,63870.0,63869.0,0.05]
[1721077271742,0.0488116,63870.0,63867.0,0.0359]
[1721077271950,0.2491,63874.0,63867.0,0.05]
[1721077271951,0.0488116,63869.0,63867.0,0.05]
[1721077272183,0.0488116,63868.0,63867.0,0.0359]
[1721077272332,0.02431085,63868.0,63867.0,0.0859]
[1721077272603,0.02431085,63868.0,63867.0,0.0359]
[1721077273365,0.1,63873.0,63866.0,0.1349]
[1721077273739,0.1,63873.0,63867.0,0.0859]
[1721077273740,0.04826595,63872.0,63867.0,0.0859]
[1721077273962,0.001,63868.0,63867.0,0.0499]